fUSD/lending_fUSD_20250828
["ID","MTS","AMOUNT","RATE_DAILY","PERIOD"]
[381834420,1756363851466,-400.0,0.00019095,2]
[381834421,1756363851476,-400.0,0.00019095,2]
[381834422,1756363851485,-400.0,0.00019095,2]
[381834423,1756363851495,-725.7,0.00019095,2]
[381834424,1756363851504,-400.0,0.00019095,2]
[381834425,1756363851515,-400.0,0.00019095,2]
[381834426,1756363851527,-400.0,0.00019095,2]
[381834427,1756363851536,-400.0,0.00019095,2]
[381834428,1756363851545,-400.0,0.00019095,2]
[381834429,1756363851554,-400.0,0.00019095,2]
[381834430,1756363851564,-549.03,0.00019095,2]
[381834431,1756363851575,-400.0,0.00019095,2]
[381834432,1756363851586,-1274.45,0.00019095,2]
[381834433,1756363851595,-400.0,0.00019095,2]
[381834434,1756363851604,-400.0,0.00019095,2]
[381834435,1756363851614,-207.75152454,0.00019095,2]
[381834436,1756363851624,-455.82,0.00019095,2]
[381834437,1756363851633,-400.0,0.00019095,2]
[381834438,1756363851642,-200.43602112,0.00019178,2]
[381834439,1756363851651,-400.0,0.00019267,2]
[381834440,1756363851659,-159.81,0.00019268,2]
[381834441,1756363851668,-400.0,0.00019268,2]
[381834442,1756363851678,-400.0,0.00019268,2]
[381834443,1756363851687,-400.0,0.00019269,2]
[381834444,1756363851696,-527.0,0.000193,3]
[381834445,1756363851705,-400.0,0.00019338,2]
[381834446,1756363851715,-400.0,0.00019338,2]
[381834447,1756363851725,-400.0,0.00019338,2]
[381834448,1756363851736,-330.39405375,0.00019338,2]
[381834449,1756363851747,-416.20715372,0.00019338,2]
[381834450,1756363851756,-171.67302844,0.00019338,2]
[381834451,1756363851766,-400.0,0.00019338,2]
[381834452,1756363851775,-400.0,0.00019338,2]
[381834453,1756363851788,-782.21,0.00019338,2]
[381834454,1756363851797,-400.0,0.00019338,2]
[381834455,1756363851808,-400.0,0.00019338,2]
[381834456,1756363851818,-400.0,0.00019367,2]
[381834457,1756363851827,-1224.72,0.00019369,2]
[381834458,1756363851836,-400.0,0.00019369,2]
[381834459,1756363851845,-648.71,0.00019369,2]
[381834460,1756363851855,-400.82601308,0.00019369,2]
[381834461,1756363851864,-400.0,0.00019369,2]
[381834462,1756363851875,-574.54,0.00019369,2]
[381834463,1756363851885,-400.0,0.00019369,2]
[381834464,1756363851894,-400.0,0.00019369,2]
[381834465,1756363851907,-400.0,0.00019369,2]
[381834466,1756363851916,-400.0,0.00019369,2]
[381834467,1756363851925,-2655.64,0.00019369,2]
[381834468,1756363851935,-407.78,0.00019369,2]
[381834469,1756363851943,-2544.99,0.00019369,2]
[381834470,1756363851953,-1355.55,0.00019369,2]
[381834471,1756363851962,-1355.55,0.00019369,2]
[381834472,1756363851975,-400.0,0.00019369,2]
[381834473,1756363851985,-400.0,0.00019369,2]
[381834474,1756363851994,-400.0,0.00019369,2]
[381834475,1756363852003,-280.46865455,0.00019369,2]
[381834476,1756363852014,-400.0,0.00019369,2]
[381834477,1756363852023,-725.7,0.00019369,2]
[381834478,1756363852032,-400.0,0.00019369,2]
[381834479,1756363852043,-400.0,0.00019369,2]
[381834480,1756363852054,-400.0,0.00019369,2]
[381834481,1756363852063,-400.0,0.00019369,2]
[381834482,1756363852072,-400.0,0.00019369,2]
[381834483,1756363852325,-549.03,0.00019369,2]
[381834484,1756363852339,-400.0,0.00019369,2]
[381834485,1756363852348,-1274.45,0.00019369,2]
[381834486,1756363852357,-400.0,0.00019369,2]
[381834487,1756363852366,-400.0,0.00019369,2]
[381834488,1756363852375,-400.0,0.00019369,2]
[381834489,1756363852385,-455.82,0.00019369,2]
[381834490,1756363852394,-400.0,0.00019369,2]
[381834491,1756363852403,-150.0,0.00019416,2]
[381834492,1756363852412,-1209.36,0.00019416,2]
[381834493,1756363852421,-539.88,0.00019416,2]
[381834494,1756363852431,-1186.07,0.00019416,2]
[381834495,1756363852439,-150.77,0.00019416,2]
[381834496,1756363852448,-823.90237999,0.00019421,2]
[381834497,1756363852457,-1000.0,0.00019421,2]
[381834498,1756363852466,-1000.0,0.00019421,2]
[381834499,1756363852477,-1000.0,0.00019421,2]
[381834500,1756363852486,-400.0,0.00019542,2]
[381834501,1756363852495,-400.0,0.00019542,2]
[381834502,1756363852504,-400.0,0.00019543,2]
[381834503,1756363852513,-527.0,0.00019574,3]
[381834504,1756363852523,-1484.42657331,0.00019596,2]
[381834505,1756363852534,-361.10247878,0.00019606,2]
[381834506,1756363852545,-400.0,0.00019612,2]
[381834507,1756363852554,-782.21,0.00019612,2]
[381834508,1756363852564,-400.0,0.00019612,2]
[381834509,1756363852574,-400.0,0.00019641,2]
[381834510,1756363852583,-151.0,0.00019643,2]
[381834511,1756363852592,-160.755259,0.00019643,2]
[381834512,1756363852601,-1224.72,0.00019643,2]
[381834513,1756363852610,-400.0,0.00019643,2]
[381834514,1756363852620,-648.71,0.00019643,2]
[381834515,1756363852629,-400.0,0.00019643,2]
[381834516,1756363852639,-574.54,0.00019643,2]
[381834517,1756363852648,-400.0,0.00019643,2]
[381834518,1756363852658,-400.0,0.00019643,2]
[381834519,1756363852668,-400.0,0.00019643,2]
[381834520,1756363852678,-400.0,0.00019643,2]
[381834521,1756363852690,-2655.64,0.00019643,2]
[381834522,1756363852700,-407.78,0.00019643,2]
[381834523,1756363852710,-2544.99,0.00019643,2]
[381834524,1756363852720,-1355.55,0.00019643,2]
[381834525,1756363852731,-1355.55,0.00019643,2]
[381834526,1756363852741,-400.0,0.00019643,2]
[381834527,1756363852752,-400.0,0.00019643,2]
[381834528,1756363852761,-400.0,0.00019643,2]
[381834529,1756363852770,-400.0,0.00019643,2]
[381834530,1756363852779,-725.7,0.00019643,2]
[381834531,1756363852788,-400.0,0.00019643,2]
[381834532,1756363852798,-400.0,0.00019643,2]
[381834533,1756363852807,-400.0,0.00019643,2]
[381834534,1756363852817,-400.0,0.00019643,2]
[381834535,1756363852827,-400.0,0.00019643,2]
[381834536,1756363852836,-549.03,0.00019643,2]
[381834537,1756363852845,-400.0,0.00019643,2]
[381834538,1756363852855,-400.0,0.00019643,2]
[381834539,1756363852864,-400.0,0.00019643,2]
[381834540,1756363852874,-400.0,0.00019643,2]
[381834541,1756363852884,-455.82,0.00019643,2]
[381834542,1756363852893,-1000.0,0.00019646,2]
[381834543,1756363852903,-700.0,0.00019712,2]
[381834544,1756363852912,-1900.0,0.00019712,2]
[381834545,1756363852921,-400.0,0.00019816,2]
[381834546,1756363852930,-400.0,0.00019816,2]
[381834547,1756363852940,-400.0,0.00019817,2]
[381834548,1756363852950,-17700.081638,0.00019824,2]
[381834549,1756363852959,-537.0,0.00019844,2]
[381834550,1756363852970,-527.0,0.00019848,3]
[381834551,1756363852981,-183.15,0.00019863,2]
[381834552,1756363852990,-859.6715193,0.00019883,2]
[381834553,1756363853000,-170.79,0.00019886,2]
[381834554,1756363853009,-782.21,0.00019886,2]
[381834555,1756363853020,-400.0,0.00019886,2]
[381834556,1756363853030,-3045.3204812,0.000199,3]
[381834557,1756363853039,-400.0,0.00019915,2]
[381834558,1756363853048,-1224.72,0.00019917,2]
[381834559,1756363853058,-400.0,0.00019917,2]
[381834560,1756363853067,-648.71,0.00019917,2]
[381834561,1756363853076,-150.34294468,0.00019917,2]
[381834562,1756363853086,-574.54,0.00019917,2]
[381834563,1756363853095,-400.0,0.00019917,2]
[381834564,1756363853105,-400.0,0.00019917,2]
[381834565,1756363853115,-400.0,0.00019917,2]
[381834566,1756363853124,-400.0,0.00019917,2]
[381834567,1756363853134,-2655.64,0.00019917,2]
[381834568,1756363853143,-407.78,0.00019917,2]
[381834569,1756363853152,-2544.99,0.00019917,2]
[381834570,1756363853161,-1355.55,0.00019917,2]
[381834571,1756363853170,-1355.55,0.00019917,2]
[381834572,1756363853179,-258.47303505,0.00019917,2]
[381834573,1756363853189,-400.0,0.00019917,2]
[381834574,1756363853198,-400.0,0.00019917,2]
[381834575,1756363853207,-400.0,0.00019917,2]
[381834576,1756363853216,-725.7,0.00019917,2]
[381834577,1756363853225,-400.0,0.00019917,2]
[381834578,1756363853235,-400.0,0.00019917,2]
[381834579,1756363853244,-400.0,0.00019917,2]
[381834580,1756363853253,-400.0,0.00019917,2]
[381834581,1756363853263,-400.0,0.00019917,2]
[381834582,1756363853272,-549.03,0.00019917,2]
[381834583,1756363853281,-182.90913798,0.00019917,2]
[381834584,1756363853290,-400.0,0.00019917,2]
[381834585,1756363853299,-400.0,0.00019917,2]
[381834586,1756363853309,-400.0,0.00019917,2]
[381834587,1756363853319,-455.82,0.00019917,2]
[381834588,1756363853331,-824.04702224,0.00019968,2]
[381834589,1756363853341,-500.0,0.00019968,2]
[381834590,1756363853350,-1520.91011504,0.00019968,2]
[381834591,1756363853360,-2033.42,0.0002,2]
[381834592,1756363853369,-1524.19243334,0.0002,2]
[381834593,1756363853379,-2357.15061,0.0002,2]
[381834594,1756363853390,-200.0,0.0002,2]
[381834595,1756363853399,-4000.0,0.0002,4]
[381834596,1756363853408,-257.91778498,0.00020007,2]
[381834597,1756363853417,-213.0,0.0002003,2]
[381834598,1756363853426,-900.0,0.00020087,2]
[381834599,1756363853435,-900.0,0.00020087,2]
[381834600,1756363853444,-900.0,0.00020087,2]
[381834601,1756363853453,-900.0,0.00020087,2]
[381834602,1756363853462,-900.0,0.00020087,2]
[381834603,1756363853471,-900.0,0.00020087,2]
[381834604,1756363853480,-900.0,0.00020087,2]
[381834605,1756363853491,-900.0,0.00020087,2]
[381834606,1756363853501,-200.0,0.00020087,2]
[381834607,1756363853510,-400.0,0.0002009,2]
[381834608,1756363853520,-400.0,0.0002009,2]
[381834609,1756363853530,-400.0,0.00020091,2]
[381834610,1756363853541,-312.76700458,0.00020093,2]
[381834611,1756363853550,-527.0,0.00020122,3]
[381834612,1756363853561,-400.0,0.00020144,2]
[381834613,1756363853571,-400.0,0.00020144,2]
[381834614,1756363853580,-400.0,0.00020144,2]
[381834615,1756363853589,-782.21,0.0002016,2]
[381834616,1756363853599,-171.88,0.00020187,2]
[381834617,1756363853607,-400.0,0.00020189,2]
[381834618,1756363853616,-1224.72,0.00020191,2]
[381834619,1756363853626,-400.0,0.00020191,2]
[381834620,1756363853642,-648.71,0.00020191,2]
[381834621,1756363853651,-574.54,0.00020191,2]
[381834622,1756363853660,-400.0,0.00020191,2]
[381834623,1756363853670,-447.989565,0.00020191,2]
[381834624,1756363853681,-400.0,0.00020191,2]
[381834625,1756363853690,-400.0,0.00020191,2]
[381834626,1756363853700,-2655.64,0.00020191,2]
[381834627,1756363853710,-407.78,0.00020191,2]
[381834628,1756363853721,-2544.99,0.00020191,2]
[381834629,1756363853731,-1355.55,0.00020191,2]
[381834630,1756363853741,-528.27661147,0.00020191,2]
[381834631,1756363853753,-400.0,0.00020191,2]
[381834632,1756363853763,-400.0,0.00020191,2]
[381834633,1756363853773,-725.7,0.00020191,2]
[381834634,1756363853782,-400.0,0.00020191,2]
[381834635,1756363853792,-400.0,0.00020191,2]
[381834636,1756363853801,-400.0,0.00020191,2]
[381834637,1756363853810,-400.0,0.00020191,2]
[381834638,1756363853824,-400.0,0.00020191,2]
[381834639,1756363853836,-549.03,0.00020191,2]
[381834640,1756363853846,-400.0,0.00020191,2]
[381834641,1756363853856,-400.0,0.00020191,2]
[381834642,1756363853865,-400.0,0.00020191,2]
[381834643,1756363853874,-455.82,0.00020191,2]
[381834644,1756363853884,-300.0,0.00020215,2]
[381834645,1756363853894,-539.88,0.00020238,2]
[381834646,1756363853904,-1821.7,0.00020238,2]
[381834647,1756363853913,-539.88,0.00020238,2]
[381834648,1756363853923,-347.52,0.00020238,2]
[381834649,1756363853932,-539.88,0.00020238,2]
[381834650,1756363853941,-539.98,0.00020238,2]
[381834651,1756363853951,-408.79,0.00020238,2]
[381834652,1756363853960,-200.0,0.00020288,2]
[381834653,1756363853971,-1642.0,0.000203,2]
[381834654,1756363853982,-500.0,0.00020312,2]
[381834655,1756363853991,-191.74,0.0002034,2]
[381834656,1756363854001,-400.0,0.00020364,2]
[381834657,1756363854010,-400.0,0.00020365,2]
[381834658,1756363854019,-294.74950979,0.00020371,2]
[381834659,1756363854029,-527.0,0.00020396,3]
[381834660,1756363854038,-400.0,0.00020418,2]
[381834661,1756363854047,-400.0,0.00020418,2]
[381834662,1756363854057,-782.21,0.00020434,2]
[381834663,1756363854067,-1484.42657331,0.00020445,2]
[381834664,1756363854076,-400.0,0.00020463,2]
[381834665,1756363854086,-1224.72,0.00020465,2]
[381834666,1756363854095,-400.0,0.00020465,2]
[381834667,1756363854105,-648.71,0.00020465,2]
[381834668,1756363854114,-574.54,0.00020465,2]
[381834669,1756363854124,-400.0,0.00020465,2]
[381834670,1756363854133,-400.0,0.00020465,2]
[381834671,1756363854144,-400.0,0.00020465,2]
[381834672,1756363854155,-2655.64,0.00020465,2]
[381834673,1756363854164,-407.78,0.00020465,2]
[381834674,1756363854173,-2544.99,0.00020465,2]
[381834675,1756363854182,-1355.55,0.00020465,2]
[381834676,1756363854191,-400.0,0.00020465,2]
[381834677,1756363854201,-400.0,0.00020465,2]
[381834678,1756363854211,-725.7,0.00020465,2]
[381834679,1756363854220,-400.0,0.00020465,2]
[381834680,1756363854230,-400.0,0.00020465,2]
[381834681,1756363854239,-400.0,0.00020465,2]
[381834682,1756363854248,-400.0,0.00020465,2]
[381834683,1756363854257,-400.0,0.00020465,2]
[381834684,1756363854266,-549.03,0.00020465,2]
[381834685,1756363854276,-400.0,0.00020465,2]
[381834686,1756363854285,-400.0,0.00020465,2]
[381834687,1756363854294,-400.0,0.00020465,2]
[381834688,1756363854304,-455.82,0.00020465,2]
[381834689,1756363854314,-200.0,0.00020491,2]
[381834690,1756363854324,-400.0,0.00020638,2]
[381834691,1756363854334,-400.0,0.00020639,2]
[381834692,1756363854343,-500.0,0.00020658,2]
[381834693,1756363854353,-527.0,0.0002067,3]
[381834694,1756363854362,-477.73,0.00020692,2]
[381834695,1756363854373,-400.0,0.00020692,2]
[381834696,1756363854383,-859.6715193,0.00020703,2]
[381834697,1756363854392,-500.0,0.00020708,2]
[381834698,1756363854400,-500.0,0.00020708,2]
[381834699,1756363854410,-500.0,0.00020708,2]
[381834700,1756363854419,-500.0,0.00020708,2]
[381834701,1756363854429,-500.0,0.00020708,2]
[381834702,1756363854439,-500.0,0.00020708,2]
[381834703,1756363854448,-500.0,0.00020708,2]
[381834704,1756363854458,-500.0,0.00020708,2]
[381834705,1756363854468,-500.0,0.00020708,2]
[381834706,1756363854478,-500.0,0.00020708,2]
[381834707,1756363854488,-500.0,0.00020708,2]
[381834708,1756363854499,-574.0,0.00020708,2]
[381834709,1756363854509,-529.0,0.00020708,2]
[381834710,1756363854519,-500.0,0.00020708,2]
[381834711,1756363854530,-500.0,0.00020708,2]
[381834712,1756363854541,-500.0,0.00020708,2]
[381834713,1756363854552,-500.0,0.00020708,2]
[381834714,1756363854564,-500.0,0.00020708,2]
[381834715,1756363854576,-500.0,0.00020708,2]
[381834716,1756363854586,-500.0,0.00020708,2]
[381834717,1756363854595,-500.0,0.00020708,2]
[381834718,1756363854605,-500.0,0.00020708,2]
[381834719,1756363854614,-500.0,0.00020708,2]
[381834720,1756363854623,-500.0,0.00020708,2]
[381834721,1756363854632,-500.0,0.00020708,2]
[381834722,1756363854642,-500.0,0.00020708,2]
[381834723,1756363854651,-500.0,0.00020708,2]
[381834724,1756363854662,-500.0,0.00020708,2]
[381834725,1756363854671,-500.0,0.00020708,2]
[381834726,1756363854680,-500.0,0.00020708,2]
[381834727,1756363854689,-500.0,0.00020708,2]
[381834728,1756363854698,-514.0,0.00020708,2]
[381834729,1756363854707,-782.21,0.00020708,2]
[381834730,1756363854716,-500.0,0.00020708,2]
[381834731,1756363854728,-500.0,0.00020708,2]
[381834732,1756363854747,-152.0,0.00020737,2]
[381834733,1756363854756,-400.0,0.00020737,2]
[381834734,1756363854766,-154.0,0.00020737,2]
[381834735,1756363854775,-152.0,0.00020737,2]
[381834736,1756363854785,-152.0,0.00020737,2]
[381834737,1756363854794,-152.0,0.00020737,2]
[381834738,1756363854803,-152.0,0.00020737,2]
[381834739,1756363854813,-152.0,0.00020737,2]
[381834740,1756363854822,-152.0,0.00020737,2]
[381834741,1756363854831,-152.0,0.00020737,2]
[381834742,1756363854841,-1224.72,0.00020739,2]
[381834743,1756363854850,-400.0,0.00020739,2]
[381834744,1756363854859,-648.71,0.00020739,2]
[381834745,1756363854869,-574.54,0.00020739,2]
[381834746,1756363854878,-400.0,0.00020739,2]
[381834747,1756363854888,-400.0,0.00020739,2]
[381834748,1756363854898,-400.0,0.00020739,2]
[381834749,1756363854907,-2655.64,0.00020739,2]
[381834750,1756363854918,-407.78,0.00020739,2]
[381834751,1756363854927,-2544.99,0.00020739,2]
[381834752,1756363854936,-1355.55,0.00020739,2]
[381834753,1756363854946,-224.55327699,0.00020739,2]
[381834754,1756363854956,-400.0,0.00020739,2]
[381834755,1756363854966,-725.7,0.00020739,2]
[381834756,1756363854981,-400.0,0.00020739,2]
[381834757,1756363854991,-400.0,0.00020739,2]
[381834758,1756363855000,-400.0,0.00020739,2]
[381834759,1756363855010,-400.0,0.00020739,2]
[381834760,1756363855019,-400.0,0.00020739,2]
[381834761,1756363855029,-549.03,0.00020739,2]
[381834762,1756363855040,-400.0,0.00020739,2]
[381834763,1756363855050,-400.0,0.00020739,2]
[381834764,1756363855060,-400.0,0.00020739,2]
[381834765,1756363855070,-455.82,0.00020739,2]
[381834766,1756363855080,-210.0,0.0002074,2]
[381834767,1756363855090,-204.0,0.0002074,2]
[381834768,1756363855099,-700.0,0.00020808,2]
[381834769,1756363855108,-1900.0,0.00020808,2]
[381834770,1756363855117,-500.0,0.0002086,2]
[381834771,1756363855127,-1221.0,0.00020875,2]
[381834772,1756363855136,-1221.0,0.00020875,2]
[381834773,1756363855145,-1221.0,0.00020875,2]
[381834774,1756363855156,-1221.0,0.00020875,2]
[381834775,1756363855166,-1221.0,0.00020875,2]
[381834776,1756363855176,-1221.0,0.00020875,2]
[381834777,1756363855185,-1221.0,0.00020875,2]
[381834778,1756363855194,-313.85285984,0.00020911,2]
[381834779,1756363855203,-400.0,0.00020912,2]
[381834780,1756363855213,-400.0,0.00020913,2]
[381834781,1756363855223,-527.0,0.00020944,3]
[381834782,1756363855232,-399.96,0.00020966,2]
[381834783,1756363855241,-782.21,0.00020982,2]
[381834784,1756363855250,-300.0,0.00020999,2]
[381834785,1756363855259,-500.0,0.00021,2]
[381834786,1756363855269,-170160.67450399,0.00021,2]
[381834787,1756363855278,-400.0,0.00021011,2]
[381834788,1756363855287,-1224.72,0.00021013,2]
[381834789,1756363855296,-400.0,0.00021013,2]
[381834790,1756363855305,-648.71,0.00021013,2]
[381834791,1756363855315,-574.54,0.00021013,2]
[381834792,1756363855324,-400.0,0.00021013,2]
[381834793,1756363855333,-400.0,0.00021013,2]
[381834794,1756363855342,-400.0,0.00021013,2]
[381834795,1756363855351,-2655.64,0.00021013,2]
[381834796,1756363855360,-407.78,0.00021013,2]
[381834797,1756363855369,-1355.55,0.00021013,2]
[381834798,1756363855378,-379.81388795,0.00021013,2]
[381834799,1756363855387,-725.7,0.00021013,2]
[381834800,1756363855397,-400.0,0.00021013,2]
[381834801,1756363855406,-400.0,0.00021013,2]
[381834802,1756363855415,-400.0,0.00021013,2]
[381834803,1756363855424,-400.0,0.00021013,2]
[381834804,1756363855433,-400.0,0.00021013,2]
[381834805,1756363855442,-549.03,0.00021013,2]
[381834806,1756363855451,-400.0,0.00021013,2]
[381834807,1756363855460,-400.0,0.00021013,2]
[381834808,1756363855470,-400.0,0.00021013,2]
[381834809,1756363855479,-455.82,0.00021013,2]
[381834810,1756363855488,-200.0,0.00021071,2]
[381834811,1756363855498,-300.0,0.00021105,2]
[381834812,1756363855507,-210.0,0.0002112,2]
[381834813,1756363855516,-213.0,0.0002112,2]
[381834814,1756363855525,-204.0,0.0002112,2]
[381834815,1756363855535,-400.0,0.00021186,2]
[381834816,1756363855544,-400.0,0.00021187,2]
[381834817,1756363855553,-527.0,0.00021218,3]
[381834818,1756363855562,-418.0,0.0002122,2]
[381834819,1756363855571,-782.21,0.00021256,2]
[381834820,1756363855581,-400.0,0.00021285,2]
[381834821,1756363855590,-1224.72,0.00021287,2]
[381834822,1756363855599,-368.93553987,0.00021287,2]
[381834823,1756363855608,-648.71,0.00021287,2]
[381834824,1756363855617,-574.54,0.00021287,2]
[381834825,1756363855626,-400.0,0.00021287,2]
[381834826,1756363855635,-400.0,0.00021287,2]
[381834827,1756363855645,-400.0,0.00021287,2]
[381834828,1756363855654,-2655.64,0.00021287,2]
[381834829,1756363855664,-407.78,0.00021287,2]
[381834830,1756363855674,-1355.55,0.00021287,2]
[381834831,1756363855685,-725.7,0.00021287,2]
[381834832,1756363855697,-400.0,0.00021287,2]
[381834833,1756363855709,-300.44409625,0.00021287,2]
[381834834,1756363855720,-400.0,0.00021287,2]
[381834835,1756363855731,-400.0,0.00021287,2]
[381834836,1756363855742,-400.0,0.00021287,2]
[381834837,1756363855751,-549.03,0.00021287,2]
[381834838,1756363855762,-441.52228495,0.00021287,2]
[381834839,1756363855773,-400.0,0.00021287,2]
[381834840,1756363855783,-400.0,0.00021287,2]
[381834841,1756363855795,-455.82,0.00021287,2]
[381834842,1756363855807,-1484.42657331,0.00021294,2]
[381834843,1756363855817,-361.10247878,0.00021313,2]
[381834844,1756363855829,-267.46074303,0.00021376,2]
[381834845,1756363855839,-150.0,0.00021404,2]
[381834846,1756363855850,-510.84149308,0.00021404,2]
[381834847,1756363855861,-183.37976767,0.00021404,2]
[381834848,1756363855873,-150.0,0.00021404,2]
[381834849,1756363855884,-1300.37847016,0.00021404,2]
[381834850,1756363855895,-150.0,0.00021404,2]
[381834851,1756363855905,-2022.04343075,0.00021404,2]
[381834852,1756363855918,-150.0,0.00021404,2]
[381834853,1756363855928,-1584.42034418,0.00021404,2]
[381834854,1756363855939,-1028.4410369,0.0002145,2]
[381834855,1756363855950,-400.0,0.0002146,2]
[381834856,1756363855962,-400.0,0.00021461,2]
[381834857,1756363855975,-527.0,0.00021492,3]
[381834858,1756363855985,-210.0,0.000215,2]
[381834859,1756363855995,-213.0,0.000215,2]
[381834860,1756363856005,-204.0,0.000215,2]
[381834861,1756363856015,-859.6715193,0.00021523,2]
[381834862,1756363856026,-782.21,0.0002153,2]
[381834863,1756363856037,-895.0,0.00021534,2]
[381834864,1756363856048,-1425.0,0.0002154,2]
[381834865,1756363856060,-168.0,0.00021545,2]
[381834866,1756363856071,-1425.0,0.00021553,2]
[381834867,1756363856082,-400.0,0.00021559,2]
[381834868,1756363856093,-1224.72,0.00021561,2]
[381834869,1756363856103,-648.71,0.00021561,2]
[381834870,1756363856114,-574.54,0.00021561,2]
[381834871,1756363856124,-400.0,0.00021561,2]
[381834872,1756363856135,-400.0,0.00021561,2]
[381834873,1756363856146,-400.0,0.00021561,2]
[381834874,1756363856157,-2655.64,0.00021561,2]
[381834875,1756363856168,-407.78,0.00021561,2]
[381834876,1756363856179,-1355.55,0.00021561,2]
[381834877,1756363856189,-725.7,0.00021561,2]
[381834878,1756363856200,-400.0,0.00021561,2]
[381834879,1756363856211,-400.0,0.00021561,2]
[381834880,1756363856221,-400.0,0.00021561,2]
[381834881,1756363856232,-400.0,0.00021561,2]
[381834882,1756363856244,-549.03,0.00021561,2]
[381834883,1756363856254,-400.0,0.00021561,2]
[381834884,1756363856265,-400.0,0.00021561,2]
[381834885,1756363856276,-455.82,0.00021561,2]
[381834886,1756363856286,-1425.0,0.00021563,2]
[381834887,1756363856297,-300.0,0.00021564,2]
[381834888,1756363856307,-200.0,0.00021565,2]
[381834889,1756363856318,-200.0,0.00021565,2]
[381834890,1756363856328,-200.0,0.00021565,2]
[381834891,1756363856338,-200.0,0.00021565,2]
[381834892,1756363856349,-200.0,0.00021565,2]
[381834893,1756363856359,-200.0,0.00021565,2]
[381834894,1756363856370,-200.0,0.00021565,2]
[381834895,1756363856381,-200.0,0.00021565,2]
[381834896,1756363856392,-200.0,0.00021565,2]
[381834897,1756363856404,-200.0,0.00021565,2]
[381834898,1756363856415,-200.0,0.00021565,2]
[381834899,1756363856426,-200.0,0.00021565,2]
[381834900,1756363856437,-200.0,0.00021565,2]
[381834901,1756363856448,-200.0,0.00021565,2]
[381834902,1756363856458,-200.0,0.00021565,2]
[381834903,1756363856468,-209.0,0.00021565,2]
[381834904,1756363856479,-800.0,0.00021565,2]
[381834905,1756363856491,-800.0,0.00021565,2]
[381834906,1756363856501,-800.0,0.00021565,2]
[381834907,1756363856511,-800.0,0.00021565,2]
[381834908,1756363856521,-800.0,0.00021565,2]
[381834909,1756363856531,-800.0,0.00021565,2]
[381834910,1756363856541,-800.0,0.00021565,2]
[381834911,1756363856551,-800.0,0.00021565,2]
[381834912,1756363856562,-800.0,0.00021565,2]
[381834913,1756363856572,-800.0,0.00021565,2]
[381834914,1756363856582,-800.0,0.00021565,2]
[381834915,1756363856594,-800.0,0.00021565,2]
[381834916,1756363856605,-800.0,0.00021565,2]
[381834917,1756363856615,-800.0,0.00021565,2]
[381834918,1756363856624,-800.0,0.00021565,2]
[381834919,1756363856634,-800.0,0.00021565,2]